bitfinex/quotes_SOLUSD_20250622
["timestamp","ask_amount","ask_price","bid_price","bid_amount"]
[1750613738716,18.89555119,130.28,130.24,18.89555119]
[1750613738915,2.87013492,130.27,130.24,18.89555119]
[1750613739117,18.89555119,130.28,130.24,18.89555119]
[1750613739423,2.87003973,130.27,130.24,18.89555119]
[1750613739627,18.89555119,130.28,130.24,18.89555119]
[1750613739925,2.86999241,130.27,130.24,18.89555119]
[1750613740126,24.63102512,130.28,130.24,18.89555119]
[1750613740328,2.87013492,130.27,130.23,18.64964886]
[1750613740542,18.89555119,130.24,130.22,1.6544]
[1750613741210,5.73780883,130.26,130.22,1.6544]
[1750613741513,18.89555119,130.24,130.22,1.6544]
[1750613742413,18.89555119,130.26,130.22,1.6544]
[1750613742620,21.76747333,130.25,130.22,1.6544]
[1750613742835,18.89555119,130.25,130.22,1.6544]
[1750613743314,148.1,130.28,130.25,19.38964886]
[1750613743519,148.1,130.28,130.22,1.6544]
[1750613743520,166.99555119,130.28,130.23,37.54520005]
[1750613743717,2.8731818,130.27,130.25,18.64964886]
[1750613743923,166.99555119,130.28,130.25,18.64964886]
[1750613744125,166.99555119,130.28,130.25,19.38964886]
[1750613744514,2.87297515,130.27,130.25,19.38964886]
[1750613744740,166.99555119,130.28,130.25,19.38964886]
[1750613745029,148.1,130.28,130.25,19.38964886]
[1750613745235,148.1,130.28,130.25,38.28520005]
[1750613745612,166.99555119,130.28,130.25,19.38964886]
[1750613745814,21.76889512,130.27,130.23,19.38964886]
[1750613746008,21.76905779,130.26,130.23,19.38964886]
[1750613746236,18.89555119,130.26,130.23,19.38964886]
[1750613746721,24.63477043,130.27,130.23,19.38964886]
[1750613747042,2.87400185,130.26,130.23,19.38964886]
[1750613747337,18.89555119,130.26,130.23,19.38964886]
[1750613748618,2.87546911,130.25,130.23,19.38964886]
[1750613748822,18.89555119,130.26,130.23,19.38964886]
[1750613749019,2.87576525,130.25,130.23,19.38964886]
[1750613749234,24.63502513,130.27,130.23,18.64964886]
[1750613749522,2.87571783,130.26,130.23,37.54520005]
[1750613749842,18.89555119,130.26,130.23,18.64964886]
[1750613750051,2.87576151,130.25,130.23,18.64964886]
[1750613750214,18.89555119,130.26,130.23,18.64964886]
[1750613750640,18.89555119,130.27,130.23,18.64964886]
[1750613750841,2.87578842,130.26,130.23,18.64964886]
[1750613751146,2.87578842,130.25,130.23,19.38964886]
[1750613751436,18.89555119,130.27,130.23,19.38964886]
[1750613751636,2.87602813,130.26,130.23,19.38964886]
[1750613751945,2.87602813,130.25,130.23,19.38964886]
[1750613752151,18.89555119,130.27,130.23,19.38964886]
[1750613752350,2.87604269,130.26,130.23,31.78764082]
[1750613752518,12.39799196,130.27,130.23,31.04764082]
[1750613752718,2.87596969,130.26,130.24,0.74]
[1750613752921,12.39799196,130.27,130.24,0.74]
[1750613753133,2.87596681,130.26,130.24,0.74]
[1750613753335,160.49799196,130.28,130.25,18.64964886]
[1750613753532,160.49799196,130.28,130.23,31.04764082]
[1750613753533,2.87598253,130.27,130.23,12.39799196]
[1750613753740,2.87598029,130.26,130.25,18.64964886]
[1750613754045,2.87598029,130.26,130.25,19.38964886]
[1750613754732,148.1,130.28,130.25,31.04764082]
[1750613755051,148.1,130.28,130.26,0.74]
[1750613755340,148.1,130.28,130.25,31.04764082]
[1750613755544,148.1,130.28,130.26,0.74]
[1750613756639,2.87550162,130.27,130.26,0.74]
[1750613756825,12.39799196,130.29,130.26,0.74]
[1750613757026,2.87472919,130.28,130.26,0.74]
[1750613757234,33.34,130.31,130.26,0.74]
[1750613757439,12.39799196,130.29,130.26,0.74]
[1750613757641,2.8747277,130.28,130.26,0.74]
[1750613757835,12.39799196,130.29,130.26,0.74]
[1750613758139,2.874754,130.28,130.26,0.74]
[1750613758343,12.39799196,130.29,130.26,0.74]
[1750613758546,2.87472994,130.28,130.26,0.74]
[1750613758739,12.39799196,130.29,130.26,0.74]
[1750613759058,2.87412197,130.28,130.26,0.74]
[1750613759237,12.39799196,130.29,130.26,0.74]
[1750613759553,2.87386694,130.28,130.26,0.74]
[1750613759739,12.39799196,130.29,130.26,0.74]
[1750613760053,12.39799196,130.27,130.23,12.39799196]
[1750613760253,12.39799196,130.27,130.23,18.64964886]
[1750613760455,12.39799196,130.28,130.23,31.04764082]
[1750613760638,2.87402308,130.27,130.23,31.04764082]
[1750613760988,12.39799196,130.29,130.25,31.04764082]
[1750613761252,2.87396497,130.28,130.26,0.74]
[1750613761455,33.34,130.31,130.25,31.04764082]
[1750613761661,2.87390468,130.3,130.28,12.39799196]
[1750613761845,13.076579,130.31,130.28,18.64964886]
[1750613762040,2.87318617,130.3,130.28,18.64964886]
[1750613762255,2.87318617,130.29,130.28,18.64964886]
[1750613762457,25.47353076,130.31,130.28,18.64964886]
[1750613762759,2.87203991,130.3,130.28,18.64964886]
[1750613762944,25.47288069,130.31,130.28,18.64964886]
[1750613763268,26.0,130.33,130.28,1.5334]
[1750613763469,2.87183406,130.32,130.31,19.38964886]
[1750613763833,2.87183406,130.32,130.31,18.64964886]
[1750613764260,2.87183406,130.32,130.31,31.78764082]
[1750613764445,5.73183902,130.35,130.33,18.64964886]
[1750613764648,2.87140118,130.34,130.33,31.78764082]
[1750613765176,2.87140118,130.34,130.33,19.38964886]
[1750613765351,2.87079395,130.34,130.33,19.38964886]
[1750613765552,2.87079395,130.35,130.33,18.64964886]
[1750613765760,19.73799196,130.36,130.33,18.64964886]
[1750613766054,2.86485913,130.35,130.33,18.64964886]
[1750613766275,12.39799196,130.35,130.32,0.74]
[1750613766880,12.39799196,130.34,130.3,12.39799196]
[1750613767181,15.26289253,130.35,130.32,18.64964886]
[1750613767382,12.39799196,130.35,130.32,18.64964886]
[1750613767589,7.34,130.36,130.32,18.64964886]
[1750613767789,12.39799196,130.34,130.3,12.39799196]
[1750613767989,26.0,130.35,130.29,12.39799196]
[1750613768291,12.39799196,130.3,130.25,13.96179196]
[1750613768472,12.39799196,130.29,130.25,1.5638]
[1750613768664,26.0,130.31,130.25,1.5638]
[1750613768665,12.39799196,130.28,130.25,1.5638]
[1750613769953,15.26327857,130.29,130.26,18.64964886]
[1750613770156,38.39799196,130.31,130.26,31.04764082]
[1750613770472,38.39799196,130.31,130.28,18.64964886]
[1750613770851,26.0,130.31,130.28,18.64964886]
[1750613771057,12.39799196,130.31,130.28,18.64964886]
[1750613771358,15.26277494,130.32,130.28,19.38964886]
[1750613772252,31.72884765,130.33,130.28,19.38964886]
[1750613772253,18.87797873,130.31,130.28,19.38964886]
[1750613772689,18.87797873,130.32,130.29,0.74]
[1750613773384,18.87797873,130.32,130.28,18.64964886]
[1750613773687,18.87797873,130.32,130.29,0.74]
[1750613775275,5.72884765,130.33,130.32,18.64964886]
[1750613775474,148.1,130.38,130.32,37.52762759]
[1750613775696,1.6446802,130.39,130.38,18.64964886]
[1750613776036,0.1446802,130.39,130.38,44.83852759]
[1750613776200,24.60045501,130.46,130.38,51.22054886]
[1750613776358,24.60045501,130.46,130.42,18.87797873]
[1750613776566,18.87797873,130.46,130.42,18.64964886]
[1750613776784,13.02247628,130.47,130.42,18.64964886]
[1750613776785,19.60797873,130.45,130.42,18.64964886]
[1750613776956,19.60797873,130.45,130.4,18.87797873]
[1750613776957,18.87797873,130.43,130.4,18.64964886]
[1750613777159,18.87797873,130.41,130.37,18.64964886]
[1750613777384,0.73,130.42,130.35,18.64964886]
[1750613777385,18.87797873,130.38,130.35,18.64964886]
[1750613777988,18.87797873,130.39,130.35,18.64964886]
[1750613778161,18.87797873,130.4,130.36,18.87797873]
[1750613779189,0.73,130.45,130.37,18.64964886]
[1750613779395,19.60797873,130.43,130.39,18.87797873]
[1750613781700,18.87797873,130.44,130.41,18.64964886]
[1750613782007,19.60797873,130.45,130.41,18.64964886]
[1750613782612,26.0,130.46,130.41,18.64964886]
[1750613782613,18.87797873,130.44,130.41,18.64964886]
[1750613782782,19.59797873,130.44,130.39,37.52762759]
[1750613782988,19.59797873,130.44,130.41,18.64964886]
[1750613784723,18.87797873,130.42,130.4,26.0]
[1750613784895,19.59797873,130.41,130.36,18.87797873]
[1750613785211,18.87797873,130.4,130.36,18.64964886]
[1750613785588,19.59797873,130.4,130.36,18.64964886]
[1750613785983,18.87797873,130.39,130.36,18.64964886]
[1750613786406,19.59797873,130.4,130.36,18.64964886]
[1750613788313,18.87797873,130.39,130.36,18.64964886]
[1750613789396,18.87797873,130.39,130.35,18.87797873]
[1750613791921,18.87797873,130.4,130.36,18.87797873]
[1750613792216,19.59797873,130.41,130.37,18.87797873]
[1750613792418,19.59797873,130.41,130.36,18.87797873]
[1750613792717,0.72,130.46,130.38,18.64964886]
[1750613792920,0.72,130.44,130.41,18.64964886]
[1750613793096,19.59797873,130.44,130.41,18.64964886]
[1750613794829,19.59797873,130.44,130.4,18.87797873]
[1750613794830,18.87797873,130.42,130.37,18.87797873]
[1750613795011,18.87797873,130.41,130.37,18.64964886]
[1750613795205,19.59797873,130.41,130.37,18.64964886]
[1750613795422,18.87797873,130.39,130.36,18.64964886]
[1750613795594,0.72,130.4,130.36,18.64964886]
[1750613795595,19.59797873,130.4,130.36,18.64964886]
[1750613795799,19.59797873,130.4,130.35,37.52762759]
[1750613796034,18.87797873,130.39,130.35,37.52762759]
[1750613796411,19.59797873,130.4,130.35,37.52762759]
[1750613796618,19.59797873,130.4,130.35,38.24762759]
[1750613797422,19.59797873,130.4,130.35,19.36964886]
[1750613797724,18.87797873,130.39,130.35,38.24762759]
[1750613797897,19.59797873,130.4,130.35,38.24762759]
[1750613799918,19.59797873,130.4,130.36,18.87797873]
[1750613800417,19.59797873,130.39,130.35,18.64964886]
[1750613800627,19.59797873,130.39,130.35,37.52762759]
[1750613801024,19.59797873,130.37,130.33,18.64964886]
[1750613801223,18.87797873,130.36,130.33,18.64964886]
[1750613801423,18.87797873,130.37,130.33,37.52762759]
[1750613802722,19.59797873,130.37,130.33,37.52762759]
[1750613803029,19.59797873,130.37,130.33,18.64964886]
[1750613803561,18.87797873,130.35,130.33,18.64964886]
[1750613803706,18.87797873,130.34,130.31,18.64964886]
[1750613803906,0.72,130.35,130.31,18.64964886]
[1750613804219,19.59797873,130.35,130.31,18.64964886]
[1750613804408,19.59797873,130.35,130.31,18.87797873]
[1750613805218,19.59797873,130.35,130.3,37.52762759]
[1750613805541,19.59797873,130.35,130.3,18.85964886]
[1750613805828,19.59797873,130.35,130.3,37.73762759]
[1750613806118,19.59797873,130.35,130.31,18.87797873]
[1750613806329,19.59797873,130.35,130.3,37.73762759]
[1750613807126,18.87797873,130.34,130.28,33.5802]
[1750613807352,19.59797873,130.34,130.29,37.52762759]
[1750613807620,19.59797873,130.34,130.3,18.87797873]
[1750613808106,26.0,130.36,130.3,18.87797873]
[1750613808426,18.87797873,130.35,130.3,18.87797873]
[1750613808638,18.87797873,130.35,130.31,18.64964886]
[1750613808941,19.59797873,130.35,130.31,18.64964886]
[1750613809110,18.87797873,130.34,130.31,18.64964886]
[1750613809431,18.87797873,130.34,130.3,18.87797873]
[1750613809624,19.59797873,130.34,130.3,18.87797873]
[1750613809933,19.59797873,130.35,130.3,19.59797873]
[1750613810130,19.59797873,130.35,130.31,18.64964886]
[1750613810304,18.87797873,130.34,130.28,27.5551]
[1750613810621,18.87797873,130.33,130.29,37.52762759]
[1750613810825,18.87797873,130.33,130.29,38.24762759]
[1750613811435,18.87797873,130.34,130.29,19.36964886]
[1750613811743,18.87797873,130.34,130.3,18.87797873]
[1750613811909,18.87797873,130.35,130.3,18.87797873]
[1750613812537,19.57797873,130.35,130.29,18.64964886]
[1750613812736,19.57797873,130.35,130.3,18.87797873]
[1750613814136,18.87797873,130.4,130.31,26.0]
[1750613814137,6.1478,130.39,130.31,26.0]
[1750613814436,6.1478,130.39,130.35,37.52762759]
[1750613814606,18.87797873,130.4,130.35,37.52762759]
[1750613814812,19.57797873,130.4,130.35,37.52762759]
[1750613815008,0.7,130.4,130.35,37.52762759]
[1750613815212,19.57797873,130.4,130.37,18.64964886]
[1750613815519,7.28,130.41,130.31,26.0]
[1750613815520,19.57797873,130.38,130.34,18.64964886]
[1750613815724,18.87797873,130.37,130.34,18.64964886]
[1750613815926,19.57797873,130.37,130.32,37.52762759]
[1750613816342,19.57797873,130.37,130.32,38.21762759]
[1750613816815,19.57797873,130.37,130.34,18.64964886]
[1750613817216,18.87797873,130.37,130.34,18.64964886]
[1750613817818,19.57797873,130.38,130.33,18.87797873]
[1750613818024,19.57797873,130.37,130.34,18.64964886]
[1750613819033,19.57797873,130.36,130.32,18.87797873]
[1750613819222,19.57797873,130.36,130.33,18.64964886]
[1750613819624,19.57797873,130.36,130.31,18.87797873]
[1750613819843,19.57797873,130.36,130.32,18.64964886]
[1750613820043,18.87797873,130.35,130.32,18.64964886]
[1750613821319,19.57797873,130.36,130.32,37.52762759]
[1750613823547,18.87797873,130.36,130.32,37.52762759]
[1750613824446,44.87797873,130.37,130.3,18.64964886]
[1750613824617,19.57797873,130.39,130.35,18.64964886]
[1750613825436,192.97797873,130.4,130.36,18.87797873]
[1750613826150,192.97797873,130.4,130.35,37.52762759]
[1750613826319,18.87797873,130.39,130.35,37.52762759]
[1750613826644,19.57797873,130.39,130.35,37.52762759]
[1750613826854,19.57797873,130.37,130.34,18.64964886]
[1750613827234,0.7,130.39,130.34,37.52762759]
[1750613827453,19.57797873,130.39,130.35,0.69]
[1750613827629,19.57797873,130.39,130.36,18.64964886]
[1750613829020,18.87797873,130.39,130.34,18.87797873]
[1750613829220,18.87797873,130.39,130.32,0.69]
[1750613829221,19.57797873,130.37,130.33,18.64964886]
[1750613830228,0.7,130.37,130.33,37.52762759]
[1750613830430,18.87797873,130.38,130.34,18.87797873]
[1750613830633,18.87797873,130.38,130.34,19.56797873]
[1750613831044,18.87797873,130.38,130.34,18.64964886]
[1750613831244,0.7,130.37,130.34,18.64964886]
[1750613831844,18.87797873,130.38,130.34,18.64964886]
[1750613832054,18.87797873,130.38,130.34,18.87797873]
[1750613832262,19.57797873,130.39,130.31,26.32354224]
[1750613832430,19.57797873,130.39,130.36,18.64964886]
[1750613833145,19.57797873,130.39,130.34,18.87797873]
[1750613833953,19.57797873,130.39,130.35,18.64964886]
[1750613834259,13.07463469,130.39,130.35,18.64964886]
[1750613838042,12.37463469,130.39,130.36,0.69]
[1750613838847,12.37463469,130.39,130.35,18.64964886]
[1750613839045,12.37463469,130.38,130.35,18.64964886]
[1750613839556,12.37463469,130.39,130.35,19.33964886]
[1750613840043,148.1,130.4,130.37,18.64964886]
[1750613840357,160.47463469,130.4,130.37,18.64964886]
[1750613840759,161.17463469,130.4,130.37,18.64964886]
[1750613841150,2.86910441,130.39,130.37,18.64964886]
[1750613841347,148.1,130.4,130.37,18.64964886]
[1750613841548,2.86931968,130.39,130.37,18.64964886]
[1750613841761,160.47463469,130.4,130.37,18.64964886]
[1750613842763,2.86928113,130.39,130.37,18.64964886]
[1750613842963,160.47463469,130.4,130.37,18.64964886]
[1750613843141,148.1,130.4,130.37,18.64964886]
[1750613843339,148.1,130.4,130.37,31.02428355]
[1750613843672,148.1,130.4,130.37,12.37463469]
[1750613844038,148.1,130.4,130.36,12.37463469]
[1750613845546,12.37463469,130.37,130.34,18.64964886]
[1750613846161,12.37463469,130.37,130.33,19.38964886]
[1750613846964,148.1,130.4,130.33,18.64964886]
[1750613846965,12.37463469,130.35,130.33,18.64964886]
[1750613847857,13.11463469,130.36,130.33,18.64964886]
[1750613850061,13.11463469,130.36,130.31,31.76428355]
[1750613852059,0.74,130.36,130.31,31.02428355]
[1750613852259,13.11463469,130.36,130.33,18.64964886]
[1750613853570,148.1,130.39,130.33,31.02428355]
[1750613853750,7.28,130.41,130.38,18.64964886]
[1750613853951,14.24762958,130.44,130.36,18.64964886]
[1750613853952,26.62226427,130.44,130.39,31.02428355]
[1750613854175,8.60727853,130.43,130.4,12.37463469]
[1750613854354,7.11208568,130.44,130.42,18.64964886]
[1750613854645,2.86955753,130.43,130.42,18.64964886]
[1750613854848,7.11208568,130.44,130.42,18.64964886]
[1750613855355,7.11208568,130.44,130.43,31.02428355]
[1750613856171,7.11208568,130.44,130.43,31.76428355]
[1750613856653,7.11208568,130.44,130.43,35.6826418]
[1750613857057,7.11208568,130.44,130.43,43.34958958]
[1750613858256,7.11208568,130.44,130.43,42.129257]
[1750613859257,7.11208568,130.44,130.43,23.30800711]
[1750613859467,7.11208568,130.44,130.43,41.389257]
[1750613859964,7.11208568,130.44,130.43,37.47089875]
[1750613860175,7.11208568,130.44,130.43,18.64964886]
[1750613860374,7.11208568,130.44,130.41,28.3776]
[1750613860375,7.11208568,130.44,130.41,18.82124989]
[1750613860376,7.27786668,130.44,130.41,18.82124989]
[1750613860956,7.27786668,130.44,130.42,18.64964886]
[1750613865776,7.27786668,130.44,130.42,37.47089875]
[1750613866786,7.27786668,130.44,130.43,19.56124989]
[1750613866960,7.27786668,130.44,130.43,38.21089875]
[1750613867370,7.27786668,130.44,130.43,39.83019875]
[1750613869277,7.27786668,130.44,130.43,65.83019875]
[1750613869586,7.27786668,130.44,130.43,73.49714653]
[1750613870288,26.0,130.52,130.46,18.64964886]
[1750613870468,26.0,130.52,130.49,18.82124989]
[1750613870670,26.74,130.52,130.49,18.82124989]
[1750613871076,26.0,130.52,130.49,18.82124989]
[1750613871965,44.82124989,130.52,130.49,18.64964886]
[1750613872174,44.82124989,130.52,130.47,18.82124989]
[1750613872377,0.72,130.51,130.48,37.47089875]
[1750613872588,26.72,130.52,130.48,37.47089875]
[1750613873166,26.72,130.52,130.49,18.82124989]
[1750613874174,26.72,130.52,130.48,18.82124989]
[1750613874680,0.72,130.51,130.48,18.82124989]
[1750613874861,44.82124989,130.52,130.48,18.64964886]
[1750613875066,0.72,130.51,130.48,18.64964886]
[1750613875781,19.54124989,130.51,130.47,18.82124989]
[1750613877070,19.54124989,130.51,130.44,18.64964886]
[1750613877270,19.54124989,130.51,130.47,18.82124989]
[1750613877464,0.72,130.5,130.47,18.82124989]
[1750613877890,0.72,130.5,130.44,18.64964886]
[1750613878093,0.72,130.5,130.47,18.64964886]
[1750613878486,0.72,130.5,130.47,31.00213426]
[1750613878886,12.3524854,130.52,130.47,31.00213426]
[1750613879091,0.72,130.52,130.48,12.3524854]
[1750613880995,12.3524854,130.52,130.48,12.3524854]
[1750613881295,13.0724854,130.52,130.48,12.3524854]
[1750613881704,0.72,130.52,130.48,12.3524854]
[1750613882405,26.9325854,130.53,130.48,12.3524854]
[1750613882693,0.72,130.52,130.48,12.3524854]
[1750613882898,13.0724854,130.51,130.47,31.00213426]
[1750613883275,0.72,130.51,130.47,31.00213426]
[1750613883784,12.3524854,130.52,130.47,31.00213426]
[1750613883988,12.3524854,130.51,130.47,31.00213426]
[1750613884181,13.0724854,130.52,130.47,31.00213426]
[1750613884587,0.72,130.51,130.47,31.00213426]
[1750613884775,0.72,130.5,130.43,1.6193]
[1750613884972,12.3524854,130.46,130.41,12.3524854]
[1750613885181,13.0724854,130.44,130.39,12.3524854]
[1750613885474,12.3524854,130.42,130.38,16.25781532]
[1750613885792,13.0724854,130.43,130.39,18.64964886]
[1750613886000,0.72,130.42,130.38,16.25781532]
[1750613886385,0.72,130.42,130.39,18.64964886]
[1750613886580,20.2217854,130.45,130.4,12.3524854]
[1750613886783,6.3199,130.45,130.41,12.3524854]
[1750613888186,6.3199,130.45,130.42,12.3524854]
[1750613888386,7.96,130.47,130.43,31.00213426]
[1750613888797,7.96,130.47,130.45,18.64964886]
[1750613888798,7.24,130.47,130.45,18.64964886]
[1750613889106,7.24,130.47,130.45,31.00213426]
[1750613890590,7.24,130.47,130.46,31.00213426]
[1750613890797,20.6909854,130.51,130.47,18.64964886]
[1750613890992,20.6909854,130.51,130.47,31.00213426]
[1750613892607,19.1728854,130.51,130.47,31.00213426]
[1750613892810,6.1004,130.51,130.48,12.3524854]
[1750613892992,19.5924854,130.52,130.48,12.3524854]
[1750613893304,20.3124854,130.52,130.48,12.3524854]
[1750613895707,7.96,130.52,130.48,12.3524854]
[1750613895909,10.81295905,130.52,130.48,12.3524854]
[1750613896116,20.3124854,130.52,130.48,12.3524854]
[1750613897310,0.72,130.51,130.48,12.3524854]
[1750613898580,0.72,130.51,130.47,44.64964886]
[1750613898787,0.72,130.51,130.48,12.3524854]
[1750613900023,12.3524854,130.51,130.47,44.64964886]
[1750613900184,0.72,130.5,130.47,57.00213426]
[1750613901409,0.72,130.5,130.47,44.64964886]
[1750613901788,13.0724854,130.51,130.47,57.00213426]
[1750613903207,2.86204995,130.5,130.47,57.00213426]
[1750613903409,18.80367446,130.51,130.47,57.00213426]
[1750613903589,2.86215434,130.5,130.47,44.64964886]
[1750613903792,2.86221093,130.49,130.42,1.6333]
[1750613904106,2.86221093,130.49,130.45,12.3524854]
[1750613904107,0.73,130.49,130.45,12.3524854]
[1750613904710,18.07422984,130.51,130.47,12.3524854]
[1750613904912,2.86206934,130.5,130.46,18.64964886]
[1750613905223,2.86227244,130.49,130.46,12.3524854]
[1750613905513,0.73,130.49,130.45,12.3524854]
[1750613906016,2.86253067,130.48,130.44,57.00213426]
[1750613906197,0.73,130.48,130.45,12.3524854]
[1750613906793,18.80591041,130.5,130.45,0.75]
[1750613907114,2.86234164,130.49,130.46,12.3524854]
[1750613907320,13.0824854,130.5,130.46,12.3524854]
[1750613907623,2.86364617,130.49,130.46,12.3524854]
[1750613907914,13.6743031,130.51,130.47,12.3524854]
[1750613908089,13.6743031,130.51,130.47,13.1024854]
[1750613908090,2.86343742,130.5,130.47,13.1024854]
[1750613908287,13.6743031,130.51,130.47,13.1024854]
[1750613908523,2.86343816,130.5,130.47,12.3524854]
[1750613908707,26.0267885,130.51,130.47,12.3524854]
[1750613909027,2.86378879,130.5,130.47,12.3524854]
[1750613909319,18.80754319,130.51,130.47,12.3524854]
[1750613909492,2.86379166,130.5,130.47,12.3524854]
[1750613909808,6.45505779,130.51,130.47,12.3524854]
[1750613910011,148.1,130.52,130.48,31.00213426]
[1750613910310,2.86488344,130.51,130.48,31.75213426]
[1750613910489,20.3024854,130.53,130.48,31.75213426]
[1750613910490,5.72561143,130.52,130.48,31.75213426]
[1750613910686,2.86499251,130.51,130.48,31.75213426]
[1750613910919,5.72561143,130.52,130.48,31.75213426]
[1750613911099,2.86515961,130.51,130.48,31.75213426]
[1750613911307,7.95,130.53,130.48,31.75213426]
[1750613911503,2.86520249,130.52,130.48,31.75213426]
[1750613911810,2.86520249,130.51,130.48,31.75213426]
[1750613912120,12.3524854,130.52,130.48,31.75213426]
[1750613912411,2.86519034,130.51,130.48,31.75213426]
[1750613912614,13.0824854,130.52,130.48,31.75213426]
[1750613912817,2.86489913,130.51,130.48,31.75213426]
[1750613913010,13.0824854,130.52,130.48,31.75213426]
[1750613913315,2.86515941,130.51,130.48,31.75213426]
[1750613913522,13.0824854,130.52,130.48,31.75213426]
[1750613913814,2.86485747,130.51,130.48,31.75213426]
[1750613914016,0.73,130.52,130.48,19.39964886]
[1750613914322,3.59476311,130.51,130.48,18.64964886]
[1750613914526,0.73,130.51,130.48,18.64964886]
[1750613915024,13.0824854,130.49,130.45,12.3524854]
[1750613915530,13.0824854,130.48,130.45,18.64964886]
[1750613915709,13.0824854,130.46,130.41,12.3524854]
[1750613916042,12.3524854,130.44,130.41,18.64964886]
[1750613916401,0.73,130.46,130.41,18.64964886]
[1750613916628,13.0824854,130.46,130.41,31.00213426]
[1750613917814,12.3524854,130.45,130.41,31.00213426]
[1750613918107,13.0824854,130.45,130.41,18.64964886]
[1750613918310,12.3524854,130.44,130.41,18.64964886]
[1750613918526,12.3524854,130.43,130.4,18.64964886]
[1750613919023,13.0824854,130.41,130.36,0.75]
[1750613919227,13.0824854,130.4,130.36,0.75]
[1750613919527,13.0824854,130.4,130.36,18.64964886]
[1750613919729,13.0824854,130.39,130.35,12.3524854]
[1750613920105,12.3524854,130.39,130.34,38.3524854]
[1750613920306,13.0824854,130.38,130.33,12.3524854]
[1750613920611,13.0824854,130.38,130.34,18.64964886]
[1750613921108,13.0824854,130.37,130.34,18.64964886]
[1750613921304,13.0824854,130.36,130.33,18.64964886]
[1750613921505,2.85996222,130.38,130.33,34.90303102]
[1750613921720,12.3524854,130.38,130.33,34.90303102]
[1750613921935,12.3524854,130.37,130.33,34.90303102]
[1750613922230,13.0824854,130.37,130.33,34.90303102]
[1750613922617,13.0824854,130.37,130.33,22.55054562]
[1750613922927,12.3524854,130.37,130.33,34.90303102]
[1750613923607,13.0824854,130.37,130.33,22.55054562]
[1750613923937,12.3524854,130.37,130.33,34.90303102]
[1750613924431,13.0824854,130.38,130.34,26.0]
[1750613924730,12.3524854,130.36,130.33,18.64964886]
[1750613926215,12.3524854,130.35,130.33,18.64964886]
[1750613926608,13.0824854,130.35,130.32,29.77490284]
[1750613926831,13.0824854,130.35,130.31,12.3524854]
[1750613927010,12.3524854,130.34,130.32,18.64964886]
[1750613927340,12.3524854,130.37,130.33,13.1024854]
[1750613927519,12.3524854,130.37,130.33,0.75]
[1750613927837,12.3524854,130.37,130.33,13.1024854]
[1750613928559,6.5456,130.42,130.36,12.3524854]
[1750613928715,7.2,130.43,130.39,18.64964886]
[1750613928914,12.3524854,130.42,130.38,12.3524854]
[1750613930742,19.5524854,130.43,130.39,12.3524854]
[1750613930912,12.3524854,130.42,130.38,12.3524854]
[1750613931120,12.3524854,130.42,130.37,31.00213426]
[1750613931334,12.3524854,130.42,130.38,12.3524854]
[1750613933022,7.2,130.43,130.41,12.3524854]
[1750613933650,7.2,130.43,130.42,12.3524854]
[1750613933821,7.2,130.43,130.42,31.00213426]
[1750613934321,64.3521854,130.47,130.42,31.00213426]
[1750613934914,51.9997,130.47,130.42,31.00213426]
[1750613935116,64.3521854,130.47,130.42,31.00213426]
[1750613936037,49.76,130.47,130.44,12.3524854]
[1750613936340,25.9691854,130.48,130.45,12.3524854]
[1750613936341,7.2,130.48,130.45,12.3524854]
[1750613936640,7.2,130.48,130.45,18.64964886]
[1750613937014,19.5524854,130.48,130.45,18.64964886]
[1750613937623,13.0824854,130.47,130.42,38.3524854]
[1750613937821,13.0824854,130.47,130.43,18.64964886]
[1750613938023,19.5524854,130.48,130.44,12.3524854]
[1750613938544,7.2,130.48,130.44,12.3524854]
[1750613938839,20.2824854,130.48,130.44,12.3524854]
[1750613939429,7.93,130.48,130.44,12.3524854]
[1750613939629,20.2824854,130.48,130.44,12.3524854]
[1750613940014,12.3524854,130.47,130.43,31.00213426]
[1750613940641,12.3524854,130.46,130.43,18.64964886]
[1750613940813,12.3524854,130.45,130.42,18.64964886]
[1750613941214,13.0824854,130.46,130.42,12.3524854]
[1750613941418,12.3524854,130.46,130.42,12.3524854]
[1750613941635,12.3524854,130.46,130.42,13.0424854]
[1750613942939,7.2,130.48,130.44,12.3524854]
[1750613943139,19.5524854,130.48,130.44,12.3524854]
[1750613943326,12.3524854,130.47,130.43,31.00213426]
[1750613943647,7.93,130.48,130.43,31.00213426]
[1750613943826,12.3524854,130.47,130.43,31.00213426]
[1750613944439,7.2,130.48,130.44,13.0424854]
[1750613944639,7.2,130.48,130.45,13.0424854]
[1750613944847,7.2,130.48,130.45,12.3524854]
[1750613945152,7.2,130.48,130.45,18.64964886]
[1750613945952,12.3524854,130.46,130.42,12.3524854]